{"text_format":"1","workbook":"xlsx","n_sheets":19,"sheets":["Ana Menü","Yazdırma","veri","dekontmkare","ÖdemeYaz","apartmansakinleri","Ocak ","Şubat","Mart","Nisan","Mayıs","Haziran","Temmuz","Ağustos","Eylül","Ekim","Kasım","Aralık","yardım"],"not_rendered":{"charts":0,"images":1,"macros":1,"external_links":0,"defined_names":0,"comments":2,"pivot_tables":0},"unopened":[],"bounds":{"document_bytes":16777216,"sheet_cells":100000,"rows_first":2000,"rows_last":500,"rows_between":2000,"halvings":0,"cell_chars":16384,"cell_head_chars":4096},"cells_cut":0,"cells_raw":0,"read":"whole","date_system":"1900"}

{"sheet":"Ana Menü","index":0,"n_rows":6,"n_cols":15,"rows_kept":6,"cut":false,"hidden":false,"merged":[[3,12,3,15],[2,12,2,15],[7,5,9,9],[5,12,5,13],[5,14,5,15]]}
[]
[]
[null,null,null,null,null,null,null,null,null,null,null,null,"APARTMAN ADI"]
[null,null,null,null,null,null,null,null,null,null,null,null,"Ahmet Ormanlı Apt."]
[]
[null,null,null,null,null,null,null,null,null,null,null,null,"Ödeme Yılı",null,2012]

{"sheet":"Yazdırma","index":1,"n_rows":13,"n_cols":7,"rows_kept":13,"cut":false,"hidden":false,"merged":[[5,3,5,4],[5,6,12,11]]}
[]
[]
[]
[]
[]
[null,null,null,"METREKARE HESABI OLARAK HESAPLAMA",null,null,"Allah'ın Selamı Üzerinize Olsun.\nYepyeni Bir Çalışma İstifadenize bedelsiz sunulmuştur.\nBu program Apartman yöneticilerinin işini kolaylaştırma amacıyla yapılmıştır.\n\nİyi Çalışmalar Dilerim.\n\nEnes ÇINAR\n\nenescinar@hotmail.com.tr"]
[null,null,null,"AİT OLDUĞU AY"]
[null,null,null,"Ödeme Yılı",2012]
[null,null,null,"SON ÖDEME TARİHİ","2012-12-26"]
[null,null,null,"Hesaplanacak Daire Sayısı",12]
[null,null,null,"KASADAN KARŞILAN"]
[null,null,null,"KASADA KALAN PARA",1500]
[null,null,null,"Özel Not Ekleme","Kış Mevsimi olması sebebiyle Bankalardaki yoğunluğuda göz önünde bulundurarak aidatları zamanında ödemenizi rica ederiz.."]

{"sheet":"veri","index":2,"n_rows":24,"n_cols":11,"rows_kept":24,"cut":false,"hidden":true,"merged":[[0,1,0,5],[17,1,17,5],[21,7,21,10]]}
[null,"Metrekare Hesabı"]
[null,"Aylik Gider","Yakıt","Diğer Gider","Sabit Aidat","Genel Toplam",null,"Yakıt metrekare","Gider","Toplam Daire Sayısı"]
[1,"Ocak",{"$f":"'Ocak '!G16","v":980},{"$f":"'Ocak '!G13","v":0},{"$f":"'Ocak '!G14","v":20},{"$f":"SUM(C3:D3)","v":980},null,{"$f":"C3/dekontmkare!C20","v":0.69257950530035339},null,{"$f":"Yazdırma!E10","v":12}]
[2,"Şubat",500,4,null,{"$f":"SUM(C4:D4)","v":504},null,{"$f":"C4/dekontmkare!C20","v":0.35335689045936397}]
[3,"Mart",null,null,null,0,null,{"$f":"C5/dekontmkare!C20","v":0}]
[4,"Nisan",null,null,null,0,null,{"$f":"C6/dekontmkare!C20","v":0}]
[5,"Mayıs",null,null,null,0,null,{"$f":"C7/dekontmkare!C20","v":0}]
[6,"Haziran",null,null,null,0,null,{"$f":"C8/dekontmkare!C20","v":0}]
[7,"Temmuz",null,null,null,0,null,{"$f":"C9/dekontmkare!C20","v":0}]
[8,"Ağustos",null,null,null,0,null,{"$f":"C10/dekontmkare!C20","v":0}]
[9,"Eylül",null,null,null,0,null,{"$f":"C11/dekontmkare!C20","v":0}]
[10,"Ekim",null,null,null,0,null,{"$f":"C12/dekontmkare!C20","v":0}]
[11,"Kasım",null,null,null,0,null,{"$f":"C13/dekontmkare!C20","v":0}]
[12,"Aralık",null,null,null,0,null,{"$f":"C14/dekontmkare!C20","v":0}]
[null,"Toplam Gider",{"$f":"SUM(C3:C14)","v":1480},null,null,{"$f":"SUM(F3:F14)","v":1484}]
[]
[]
[null,"Kara Düzen Hesap"]
[null,null,"Ay ","Yakıt","Diğer Gider ","Sabit Aidat",null,"Yakıt Metrekare Birim","Aidat Kişi","Toplam Gider","Aidat Hariç Gider"]
[null,1,{"$f":"VLOOKUP(B20,A2:F14,2,TRUE)","v":"Ocak"},{"$f":"VLOOKUP(B20,A2:F14,3,TRUE)","v":980},{"$f":"VLOOKUP(B20,A2:F14,4,TRUE)","v":0},{"$f":"VLOOKUP(B20,A2:F14,5,TRUE)","v":20},null,{"$f":"VLOOKUP(B20,A2:J14,8,TRUE)","v":0.69257950530035339},{"$f":"VLOOKUP(B20,A2:I14,8,TRUE)","v":0.69257950530035339},{"$f":"VLOOKUP(B20,A2:F14,5,TRUE)","v":20}]
[]
[null,null,null,null,null,null,null,"AİDAT ARTI ÖDENECEK DİĞER  GİDER HESAPLAMA TABLOSU"]
[null,null,null,null,null,null,null,"Sabit Aidat","Diğer Gider ","Kasadan Karşılanan ","Ödenecek Gider"]
[null,null,null,null,null,null,null,{"$f":"F20","v":20},{"$f":"E20-J24","v":0},{"$f":"Yazdırma!E11","v":0},{"$f":"I24/J3","v":0}]

{"sheet":"dekontmkare","index":3,"n_rows":25,"n_cols":7,"rows_kept":25,"cut":false,"hidden":true,"merged":[[24,0,24,2],[0,0,0,1],[21,0,21,2],[22,0,22,2],[23,0,23,2],[18,0,18,1]]}
[{"$f":"'Ana Menü'!M4","v":"Ahmet Ormanlı Apt."},null,{"$f":"Yazdırma!E8","v":2012},{"$f":"veri!C20","v":"Ocak"},"Ödeme Tablosu"]
["Daire No","Adı Soyadı","Daire m","Yakıt","Aidat","Diğer Gider","Yakıt Düşer"]
[1,{"$f":"apartmansakinleri!C3","v":"Ercüment"},{"$f":"apartmansakinleri!E3","v":115},{"$f":"C3*veri!H20","v":79.646643109540634},{"$f":"IF(apartmansakinleri!A2:A18,veri!H24,0)","v":20},{"$f":"IF(apartmansakinleri!A2:A18,veri!K24,0)","v":0},{"$f":"IF(apartmansakinleri!J3,0,dekontmkare!D3)","v":79.646643109540634}]
[2,{"$f":"apartmansakinleri!C4","v":"iki no"},{"$f":"apartmansakinleri!E4","v":125},{"$f":"C4*veri!H20","v":86.572438162544174},{"$f":"IF(apartmansakinleri!A4:A19,veri!H24,0)","v":20},{"$f":"IF(apartmansakinleri!A3:A19,veri!K24,0)","v":0},{"$f":"IF(apartmansakinleri!J4,0,dekontmkare!D4)","v":86.572438162544174}]
[3,{"$f":"apartmansakinleri!C5","v":"3no"},{"$f":"apartmansakinleri!E5","v":115},{"$f":"C5*veri!H20","v":79.646643109540634},{"$f":"IF(apartmansakinleri!A5:A20,veri!H24,0)","v":20},{"$f":"IF(apartmansakinleri!A4:A20,veri!K24,0)","v":0},{"$f":"IF(apartmansakinleri!J5,0,dekontmkare!D5)","v":79.646643109540634}]
[4,{"$f":"apartmansakinleri!C6","v":"4 no"},{"$f":"apartmansakinleri!E6","v":125},{"$f":"C6*veri!H20","v":86.572438162544174},{"$f":"IF(apartmansakinleri!A6:A24,veri!H24,0)","v":20},{"$f":"IF(apartmansakinleri!A5:A21,veri!K24,0)","v":0},{"$f":"IF(apartmansakinleri!J6,0,dekontmkare!D6)","v":86.572438162544174}]
[5,{"$f":"apartmansakinleri!C7","v":"5 no"},{"$f":"apartmansakinleri!E7","v":115},{"$f":"C7*veri!H20","v":79.646643109540634},{"$f":"IF(apartmansakinleri!A7:A22,veri!H24,0)","v":20},{"$f":"IF(apartmansakinleri!A6:A22,veri!K24,0)","v":0},{"$f":"IF(apartmansakinleri!J7,0,dekontmkare!D7)","v":79.646643109540634}]
[6,{"$f":"apartmansakinleri!C8","v":"6 no"},{"$f":"apartmansakinleri!E8","v":125},{"$f":"C8*veri!H20","v":86.572438162544174},{"$f":"IF(apartmansakinleri!A8:A23,veri!H24,0)","v":20},{"$f":"IF(apartmansakinleri!A7:A23,veri!K24,0)","v":0},{"$f":"IF(apartmansakinleri!J8,0,dekontmkare!D8)","v":86.572438162544174}]
[7,{"$f":"apartmansakinleri!C9","v":"7 no"},{"$f":"apartmansakinleri!E9","v":115},{"$f":"C9*veri!H20","v":79.646643109540634},{"$f":"IF(apartmansakinleri!A9:A24,veri!H24,0)","v":20},{"$f":"IF(apartmansakinleri!A8:A24,veri!K24,0)","v":0},{"$f":"IF(apartmansakinleri!J9,0,dekontmkare!D9)","v":79.646643109540634}]
[8,{"$f":"apartmansakinleri!C10","v":"Tayfun"},{"$f":"apartmansakinleri!E10","v":125},{"$f":"C10*veri!H20","v":86.572438162544174},{"$f":"IF(apartmansakinleri!A10:A25,veri!H24,0)","v":20},{"$f":"IF(apartmansakinleri!A9:A25,veri!K24,0)","v":0},{"$f":"IF(apartmansakinleri!J10,0,dekontmkare!D10)","v":86.572438162544174}]
[9,{"$f":"apartmansakinleri!C11","v":"9 no"},{"$f":"apartmansakinleri!E11","v":115},{"$f":"C11*veri!H20","v":79.646643109540634},{"$f":"IF(apartmansakinleri!A11:A26,veri!H24,0)","v":20},{"$f":"IF(apartmansakinleri!A10:A26,veri!K24,0)","v":0},{"$f":"IF(apartmansakinleri!J11,0,dekontmkare!D11)","v":79.646643109540634}]
[10,{"$f":"apartmansakinleri!C12","v":"Enes ÇINAR"},{"$f":"apartmansakinleri!E12","v":0},{"$f":"C12*veri!H20","v":0},{"$f":"IF(apartmansakinleri!A12:A27,veri!H24,0)","v":20},{"$f":"IF(apartmansakinleri!A11:A27,veri!K24,0)","v":0},{"$f":"IF(apartmansakinleri!J12,\"Yönetici\",dekontmkare!D12)","v":"Yönetici"}]
[11,{"$f":"apartmansakinleri!C13","v":"11 no"},{"$f":"apartmansakinleri!E13","v":115},{"$f":"C13*veri!H20","v":79.646643109540634},{"$f":"IF(apartmansakinleri!A13:A28,veri!H24,0)","v":20},{"$f":"IF(apartmansakinleri!A12:A28,veri!K24,0)","v":0},{"$f":"IF(apartmansakinleri!J13,0,dekontmkare!D13)","v":79.646643109540634}]
[12,{"$f":"apartmansakinleri!C14","v":"Yasin DALDAL"},{"$f":"apartmansakinleri!E14","v":125},{"$f":"C14*veri!H20","v":86.572438162544174},{"$f":"IF(apartmansakinleri!A14:A29,veri!H24,0)","v":20},{"$f":"IF(apartmansakinleri!A13:A29,veri!K24,0)","v":0},{"$f":"IF(apartmansakinleri!J14,0,dekontmkare!D14)","v":86.572438162544174}]
[13,{"$f":"apartmansakinleri!C15","v":0},{"$f":"apartmansakinleri!E15","v":100},{"$f":"C15*veri!H20","v":69.257950530035345},{"$f":"IF(apartmansakinleri!A15:A30,veri!H24,0)","v":20},{"$f":"IF(apartmansakinleri!A14:A30,veri!K24,0)","v":0},{"$f":"IF(apartmansakinleri!J15,0,dekontmkare!D15)","v":69.257950530035345}]
[14,{"$f":"apartmansakinleri!C16","v":0},{"$f":"apartmansakinleri!E16","v":0},{"$f":"C16*veri!H20","v":0},{"$f":"IF(apartmansakinleri!A16:A31,veri!H24,0)","v":0},{"$f":"IF(apartmansakinleri!A15:A31,veri!K24,0)","v":0},{"$f":"IF(apartmansakinleri!J16,0,dekontmkare!D16)","v":0}]
[15,{"$f":"apartmansakinleri!C17","v":0},{"$f":"apartmansakinleri!E17","v":0},{"$f":"C17*veri!H20","v":0},{"$f":"IF(apartmansakinleri!A17:A32,veri!H24,0)","v":0},{"$f":"IF(apartmansakinleri!A16:A32,veri!K24,0)","v":0},{"$f":"IF(apartmansakinleri!J17,0,dekontmkare!D17)","v":0}]
[16,{"$f":"apartmansakinleri!C18","v":0},{"$f":"apartmansakinleri!E18","v":0},{"$f":"C18*veri!H20","v":0},{"$f":"IF(apartmansakinleri!A18:A33,veri!H24,0)","v":0},{"$f":"IF(apartmansakinleri!A17:A33,veri!K24,0)","v":0},{"$f":"IF(apartmansakinleri!J18,0,dekontmkare!D18)","v":0}]
["Kasadan Karışılanan",null,null,{"$f":"Yazdırma!E11","v":0}]
[null,"TOPLAMLAR",{"$f":"SUM(C3:C18)","v":1415},{"$f":"SUM(D3:D18)","v":979.99999999999989},{"$f":"SUM(E3:E18)","v":260},{"$f":"SUM(F3:F19)","v":0},{"$f":"SUM(G3:G18)","v":979.99999999999989}]
[]
["Toplam Gelir",null,null,{"$f":"D20+E20+F20+veri!J24","v":1240}]
["Toplam Gider",null,null,{"$f":"veri!E20+veri!D20","v":980}]
["Kasaya Devreden",null,null,{"$f":"D22-D23","v":260}]
["KASADA KALAN PARA",null,null,{"$f":"Yazdırma!E12+D24","v":1760}]

{"sheet":"ÖdemeYaz","index":4,"n_rows":26,"n_cols":9,"rows_kept":26,"cut":false,"hidden":false,"merged":[[0,5,0,8],[0,0,0,1],[18,0,18,1],[21,0,21,2],[22,0,22,2],[21,3,21,8],[22,3,22,8],[23,3,23,8],[24,3,24,8],[25,0,28,8],[23,0,23,2],[24,0,24,2]]}
[{"$f":"'Ana Menü'!M4","v":"Ahmet Ormanlı Apt."},null,{"$f":"Yazdırma!E8","v":2012},{"$f":"veri!C20","v":"Ocak"},{"$f":"veri!C20","v":"Ocak"},"Ödeme Tablosu"]
["Daire No","Adı Soyadı","Metrekare","Yakıt","Aidat","Diğer Gider","Yakıt","TOPLAM ÖDENECEK","TOPLAM ÖDENECEK"]
[{"$f":"apartmansakinleri!A3","v":1},{"$f":"apartmansakinleri!C3","v":"Ercüment"},{"$f":"apartmansakinleri!E3","v":115},{"$f":"C3*veri!H20","v":79.646643109540634},{"$f":"IF(apartmansakinleri!A3:A18,veri!H24,0)","v":20},{"$f":"IF(apartmansakinleri!A2:A18,veri!K24,0)","v":0},{"$f":"ROUNDUP(D3,0)","v":80},{"$f":"E3+F3+G3","v":100},{"$f":"ROUNDUP(H3,0)","v":100}]
[{"$f":"apartmansakinleri!A4","v":2},{"$f":"apartmansakinleri!C4","v":"iki no"},{"$f":"apartmansakinleri!E4","v":125},{"$f":"C4*veri!H20","v":86.572438162544174},{"$f":"IF(apartmansakinleri!A4:A19,veri!H24,0)","v":20},{"$f":"IF(apartmansakinleri!A3:A19,veri!K24,0)","v":0},{"$f":"ROUNDUP(D4,0)","v":87},107,{"$f":"ROUNDUP(H4,0)","v":107}]
[{"$f":"apartmansakinleri!A5","v":3},{"$f":"apartmansakinleri!C5","v":"3no"},{"$f":"apartmansakinleri!E5","v":115},{"$f":"C5*veri!H20","v":79.646643109540634},{"$f":"IF(apartmansakinleri!A5:A20,veri!H24,0)","v":20},{"$f":"IF(apartmansakinleri!A4:A20,veri!K24,0)","v":0},80,100,100]
[{"$f":"apartmansakinleri!A6","v":4},{"$f":"apartmansakinleri!C6","v":"4 no"},{"$f":"apartmansakinleri!E6","v":125},{"$f":"C6*veri!H20","v":86.572438162544174},{"$f":"IF(apartmansakinleri!A6:A24,veri!H24,0)","v":20},{"$f":"IF(apartmansakinleri!A5:A21,veri!K24,0)","v":0},87,107,107]
[{"$f":"apartmansakinleri!A7","v":5},{"$f":"apartmansakinleri!C7","v":"5 no"},{"$f":"apartmansakinleri!E7","v":115},{"$f":"C7*veri!H20","v":79.646643109540634},{"$f":"IF(apartmansakinleri!A7:A22,veri!H24,0)","v":20},{"$f":"IF(apartmansakinleri!A6:A22,veri!K24,0)","v":0},80,100,100]
[{"$f":"apartmansakinleri!A8","v":6},{"$f":"apartmansakinleri!C8","v":"6 no"},{"$f":"apartmansakinleri!E8","v":125},{"$f":"C8*veri!H20","v":86.572438162544174},{"$f":"IF(apartmansakinleri!A8:A23,veri!H24,0)","v":20},{"$f":"IF(apartmansakinleri!A7:A23,veri!K24,0)","v":0},87,107,107]
[{"$f":"apartmansakinleri!A9","v":7},{"$f":"apartmansakinleri!C9","v":"7 no"},{"$f":"apartmansakinleri!E9","v":115},{"$f":"C9*veri!H20","v":79.646643109540634},{"$f":"IF(apartmansakinleri!A9:A24,veri!H24,0)","v":20},{"$f":"IF(apartmansakinleri!A8:A24,veri!K24,0)","v":0},80,100,100]
[{"$f":"apartmansakinleri!A10","v":8},{"$f":"apartmansakinleri!C10","v":"Tayfun"},{"$f":"apartmansakinleri!E10","v":125},{"$f":"C10*veri!H20","v":86.572438162544174},{"$f":"IF(apartmansakinleri!A10:A25,veri!H24,0)","v":20},{"$f":"IF(apartmansakinleri!A9:A25,veri!K24,0)","v":0},87,107,107]
[{"$f":"apartmansakinleri!A11","v":9},{"$f":"apartmansakinleri!C11","v":"9 no"},{"$f":"apartmansakinleri!E11","v":115},{"$f":"C11*veri!H20","v":79.646643109540634},{"$f":"IF(apartmansakinleri!A11:A26,veri!H24,0)","v":20},{"$f":"IF(apartmansakinleri!A10:A26,veri!K24,0)","v":0},80,100,100]
[{"$f":"apartmansakinleri!A12","v":10},{"$f":"apartmansakinleri!C12","v":"Enes ÇINAR"},{"$f":"apartmansakinleri!E12","v":0},{"$f":"C12*veri!H20","v":0},{"$f":"IF(apartmansakinleri!A12:A27,veri!H24,0)","v":20},{"$f":"IF(apartmansakinleri!A11:A27,veri!K24,0)","v":0},{"$f":"ROUNDUP(D12,0)","v":0},20,20]
[{"$f":"apartmansakinleri!A13","v":11},{"$f":"apartmansakinleri!C13","v":"11 no"},{"$f":"apartmansakinleri!E13","v":115},{"$f":"C13*veri!H20","v":79.646643109540634},{"$f":"IF(apartmansakinleri!A13:A28,veri!H24,0)","v":20},{"$f":"IF(apartmansakinleri!A12:A28,veri!K24,0)","v":0},80,100,100]
[{"$f":"apartmansakinleri!A14","v":12},{"$f":"apartmansakinleri!C14","v":"Yasin DALDAL"},{"$f":"apartmansakinleri!E14","v":125},{"$f":"C14*veri!H20","v":86.572438162544174},{"$f":"IF(apartmansakinleri!A14:A29,veri!H24,0)","v":20},{"$f":"IF(apartmansakinleri!A13:A29,veri!K24,0)","v":0},87,107,107]
[{"$f":"apartmansakinleri!A15","v":13},{"$f":"apartmansakinleri!C15","v":0},{"$f":"apartmansakinleri!E15","v":100},{"$f":"C15*veri!H20","v":69.257950530035345},{"$f":"IF(apartmansakinleri!A15:A30,veri!H24,0)","v":20},{"$f":"IF(apartmansakinleri!A14:A30,veri!K24,0)","v":0},70,90,90]
[{"$f":"apartmansakinleri!A16","v":0},{"$f":"apartmansakinleri!C16","v":0},{"$f":"apartmansakinleri!E16","v":0},{"$f":"C16*veri!H20","v":0},{"$f":"IF(apartmansakinleri!A16:A31,veri!H24,0)","v":0},{"$f":"IF(apartmansakinleri!A15:A31,veri!K24,0)","v":0},0,0,0]
[{"$f":"apartmansakinleri!A17","v":0},{"$f":"apartmansakinleri!C17","v":0},{"$f":"apartmansakinleri!E17","v":0},{"$f":"C17*veri!H20","v":0},{"$f":"IF(apartmansakinleri!A17:A32,veri!H24,0)","v":0},{"$f":"IF(apartmansakinleri!A16:A32,veri!K24,0)","v":0},0,0,0]
[{"$f":"apartmansakinleri!A18","v":0},{"$f":"apartmansakinleri!C18","v":0},{"$f":"apartmansakinleri!E18","v":0},{"$f":"C18*veri!H20","v":0},{"$f":"IF(apartmansakinleri!A18:A33,veri!H24,0)","v":0},{"$f":"IF(apartmansakinleri!A17:A33,veri!K24,0)","v":0},0,0,0]
["Kasadan Karışılanan",null,null,{"$f":"Yazdırma!E11","v":0},null,null,null,null,0]
[null,"TOPLAMLAR",{"$f":"SUM(C3:C18)","v":1415},{"$f":"SUM(D3:D18)","v":979.99999999999989},{"$f":"SUM(E3:E18)","v":260},{"$f":"SUM(F3:F19)","v":0},{"$f":"SUM(G3:G18)","v":985},null,0]
[]
["Toplam Gelir",null,null,{"$f":"D20+E20+F20+veri!J24","v":1240}]
["Toplam Gider",null,null,{"$f":"veri!E20+veri!D20","v":980}]
["Kasaya Devreden",null,null,{"$f":"D22-D23","v":260}]
["KASADA KALAN PARA",null,null,{"$f":"Yazdırma!E12+D24","v":1760}]
[{"$f":"Yazdırma!E13","v":"Kış Mevsimi olması sebebiyle Bankalardaki yoğunluğuda göz önünde bulundurarak aidatları zamanında ödemenizi rica ederiz.."}]

{"sheet":"apartmansakinleri","index":5,"n_rows":20,"n_cols":10,"rows_kept":20,"cut":false,"hidden":false,"merged":[[19,0,19,2],[20,0,20,2],[0,0,0,4],[0,5,0,8]]}
[{"$f":"'Ana Menü'!M4","v":"Ahmet Ormanlı Apt."},null,null,null,null,"sakinleri bilgileri"]
["Daire No","Kat","Adı Soyadı","Daire m","Hesaba Alınacak Mk","Daire Sahibi\nKiracı","Telefon Numarası Ev","Cep Tel","Evdeki Kişi Sayısı","Yöneticimi"]
[1,"Zemin","Ercüment",115,{"$f":"IF(J3,0,D3)","v":115},null,null,null,null,0]
[2,"Zemin","iki no",125,{"$f":"IF(J4,0,D4)","v":125},null,null,null,null,0]
[3,null,"3no",115,115,null,null,null,null,0]
[4,null,"4 no",125,125,null,null,null,null,0]
[5,null,"5 no",115,115,null,null,null,null,0]
[6,null,"6 no",125,125,null,null,null,null,0]
[7,null,"7 no",115,115,null,null,null,null,0]
[8,null,"Tayfun",125,125,null,null,null,null,0]
[9,null,"9 no",115,115,null,null,null,null,0]
[10,3,"Enes ÇINAR",115,0,"Daire Sahibi",5465443600,5465443600,4,1]
[11,null,"11 no",115,115,null,null,null,null,0]
[12,4,"Yasin DALDAL",125,{"$f":"IF(J14,0,D14)","v":125},"Kiracı"]
[13,null,null,100,100,null,null,null,null,0]
[null,null,null,null,0,null,null,null,null,0]
[null,null,null,null,0,null,null,null,null,0]
[null,null,null,null,0,null,null,null,null,0]
[]
["Apartman Toplam Metrekare",null,null,{"$f":"SUM(D3:D18)","v":1530},{"$f":"SUM(E3:E18)","v":1415},{"$f":"SUM(D3:D18)","v":1530}]

{"sheet":"Ocak ","index":6,"n_rows":17,"n_cols":7,"rows_kept":17,"cut":false,"hidden":false,"merged":[[15,0,16,4],[14,0,14,5],[0,0,0,2],[13,0,13,5],[12,0,12,5]]}
[{"$f":"'Ana Menü'!M4","v":"Ahmet Ormanlı Apt."},null,null,{"$f":"'Ana Menü'!O6","v":2012},"Ocak Ayı","Gider Hesabı"]
[null,"Tarihi","Giderin  Adı","Ödenen Firma","İşin Yapıldığı Tarih","Son Ödeme Tarihi","Ödenecek Tutar"]
[1,"2012-12-10","Apartman Boşluğu Elektrik","Tedaş","2012-12-21","2012-12-18"]
[2,"2012-12-10","Temizlik","Güngör Temizlik","1 Aylık","2012-12-18"]
[3,"2012-12-10","Asansör","Turşah Asansör","1 Aylık","2012-12-18"]
[4]
[5]
[6]
[7]
[8]
[9]
[10]
["GİDER ARA TOPLAMI",null,null,null,null,null,{"$f":"SUM(G3:G12)","v":0}]
["SABİT AİDAT",null,null,null,null,null,20]
["Aidat ve diğer gider toplamı",null,null,null,null,null,{"$f":"SUM(G13+G14)","v":20}]
["Not:",null,null,null,null,"Yakıt",980]
[null,null,null,null,null,"Genel Toplam",{"$f":"SUM(G15:G16)","v":1000}]

{"sheet":"Şubat","index":7,"n_rows":17,"n_cols":7,"rows_kept":17,"cut":false,"hidden":false,"merged":[[0,0,0,2],[12,0,12,5],[13,0,13,5],[14,0,14,5],[15,0,16,4],[0,4,0,6]]}
[{"$f":"'Ana Menü'!M4","v":"Ahmet Ormanlı Apt."},null,null,{"$f":"'Ana Menü'!O6","v":2012},"Şubat Ayı Gider Hesabı"]
[null,"Tarihi","Giderin  Adı","Ödenen Firma","İşin Yapıldığı Tarih","Son Ödeme Tarihi","Ödenecek Tutar"]
[1,"2012-12-10","Apartman Boşluğu Elektrik","Tedaş","2012-12-21","2012-12-18",80]
[2,"2012-12-10","Temizlik","Güngör Temizlik","1 Aylık","2012-12-18",250]
[3,"2012-12-10","Asansör","Turşah Asansör","1 Aylık","2012-12-18",50]
[4,null,null,null,null,null,130]
[5]
[6]
[7]
[8]
[9]
[10]
["GİDER ARA TOPLAMI",null,null,null,null,null,{"$f":"SUM(G3:G12)","v":510}]
["SABİT AİDAT",null,null,null,null,null,20]
["Aidat ve diğer gider toplamı",null,null,null,null,null,{"$f":"SUM(G13+G14)","v":530}]
["Not:",null,null,null,null,"Yakıt",1000]
[null,null,null,null,null,"Genel Toplam",{"$f":"SUM(G15:G16)","v":1530}]

{"sheet":"Mart","index":8,"n_rows":17,"n_cols":7,"rows_kept":17,"cut":false,"hidden":false,"merged":[[0,0,0,2],[12,0,12,5],[13,0,13,5],[14,0,14,5],[15,0,16,4],[0,4,0,6]]}
[{"$f":"'Ana Menü'!M4","v":"Ahmet Ormanlı Apt."},null,null,{"$f":"'Ana Menü'!O6","v":2012},"Mart Ayı Gider Hesabı"]
[null,"Tarihi","Giderin  Adı","Ödenen Firma","İşin Yapıldığı Tarih","Son Ödeme Tarihi","Ödenecek Tutar"]
[1,"2012-12-10","Apartman Boşluğu Elektrik","Tedaş","2012-12-21","2012-12-18",80]
[2,"2012-12-10","Temizlik","Güngör Temizlik","1 Aylık","2012-12-18",250]
[3,"2012-12-10","Asansör","Turşah Asansör","1 Aylık","2012-12-18",50]
[4,null,null,null,null,null,130]
[5]
[6]
[7]
[8]
[9]
[10]
["GİDER ARA TOPLAMI",null,null,null,null,null,{"$f":"SUM(G3:G12)","v":510}]
["SABİT AİDAT",null,null,null,null,null,20]
["Aidat ve diğer gider toplamı",null,null,null,null,null,{"$f":"SUM(G13+G14)","v":530}]
["Not:",null,null,null,null,"Yakıt",1000]
[null,null,null,null,null,"Genel Toplam",{"$f":"SUM(G15:G16)","v":1530}]

{"sheet":"Nisan","index":9,"n_rows":17,"n_cols":7,"rows_kept":17,"cut":false,"hidden":false,"merged":[[15,0,16,4],[0,0,0,2],[0,4,0,6],[12,0,12,5],[13,0,13,5],[14,0,14,5]]}
[{"$f":"'Ana Menü'!M4","v":"Ahmet Ormanlı Apt."},null,null,{"$f":"'Ana Menü'!O6","v":2012},"Nisan Ayı Gider Hesabı"]
[null,"Tarihi","Giderin  Adı","Ödenen Firma","İşin Yapıldığı Tarih","Son Ödeme Tarihi","Ödenecek Tutar"]
[1,"2012-12-10","Apartman Boşluğu Elektrik","Tedaş","2012-12-21","2012-12-18",80]
[2,"2012-12-10","Temizlik","Güngör Temizlik","1 Aylık","2012-12-18",250]
[3,"2012-12-10","Asansör","Turşah Asansör","1 Aylık","2012-12-18",50]
[4,null,null,null,null,null,130]
[5]
[6]
[7]
[8]
[9]
[10]
["GİDER ARA TOPLAMI",null,null,null,null,null,{"$f":"SUM(G3:G12)","v":510}]
["SABİT AİDAT",null,null,null,null,null,20]
["Aidat ve diğer gider toplamı",null,null,null,null,null,{"$f":"SUM(G13+G14)","v":530}]
["Not:",null,null,null,null,"Yakıt",1000]
[null,null,null,null,null,"Genel Toplam",{"$f":"SUM(G15:G16)","v":1530}]

{"sheet":"Mayıs","index":10,"n_rows":17,"n_cols":7,"rows_kept":17,"cut":false,"hidden":false,"merged":[[15,0,16,4],[0,0,0,2],[0,4,0,6],[12,0,12,5],[13,0,13,5],[14,0,14,5]]}
[{"$f":"'Ana Menü'!M4","v":"Ahmet Ormanlı Apt."},null,null,{"$f":"'Ana Menü'!O6","v":2012},"Mayıs Ayı Gider Hesabı"]
[null,"Tarihi","Giderin  Adı","Ödenen Firma","İşin Yapıldığı Tarih","Son Ödeme Tarihi","Ödenecek Tutar"]
[1,"2012-12-10","Apartman Boşluğu Elektrik","Tedaş","2012-12-21","2012-12-18",80]
[2,"2012-12-10","Temizlik","Güngör Temizlik","1 Aylık","2012-12-18",250]
[3,"2012-12-10","Asansör","Turşah Asansör","1 Aylık","2012-12-18",50]
[4,null,null,null,null,null,130]
[5]
[6]
[7]
[8]
[9]
[10]
["GİDER ARA TOPLAMI",null,null,null,null,null,{"$f":"SUM(G3:G12)","v":510}]
["SABİT AİDAT",null,null,null,null,null,20]
["Aidat ve diğer gider toplamı",null,null,null,null,null,{"$f":"SUM(G13+G14)","v":530}]
["Not:",null,null,null,null,"Yakıt",1000]
[null,null,null,null,null,"Genel Toplam",{"$f":"SUM(G15:G16)","v":1530}]

{"sheet":"Haziran","index":11,"n_rows":17,"n_cols":7,"rows_kept":17,"cut":false,"hidden":false,"merged":[[15,0,16,4],[0,0,0,2],[0,4,0,6],[12,0,12,5],[13,0,13,5],[14,0,14,5]]}
[{"$f":"'Ana Menü'!M4","v":"Ahmet Ormanlı Apt."},null,null,{"$f":"'Ana Menü'!O6","v":2012},"Haziran Ayı Gider Hesabı"]
[null,"Tarihi","Giderin  Adı","Ödenen Firma","İşin Yapıldığı Tarih","Son Ödeme Tarihi","Ödenecek Tutar"]
[1,"2012-12-10","Apartman Boşluğu Elektrik","Tedaş","2012-12-21","2012-12-18",80]
[2,"2012-12-10","Temizlik","Güngör Temizlik","1 Aylık","2012-12-18",250]
[3,"2012-12-10","Asansör","Turşah Asansör","1 Aylık","2012-12-18",50]
[4,null,null,null,null,null,130]
[5]
[6]
[7]
[8]
[9]
[10]
["GİDER ARA TOPLAMI",null,null,null,null,null,{"$f":"SUM(G3:G12)","v":510}]
["SABİT AİDAT",null,null,null,null,null,20]
["Aidat ve diğer gider toplamı",null,null,null,null,null,{"$f":"SUM(G13+G14)","v":530}]
["Not:",null,null,null,null,"Yakıt",1000]
[null,null,null,null,null,"Genel Toplam",{"$f":"SUM(G15:G16)","v":1530}]

{"sheet":"Temmuz","index":12,"n_rows":17,"n_cols":7,"rows_kept":17,"cut":false,"hidden":false,"merged":[[15,0,16,4],[0,0,0,2],[0,4,0,6],[12,0,12,5],[13,0,13,5],[14,0,14,5]]}
[{"$f":"'Ana Menü'!M4","v":"Ahmet Ormanlı Apt."},null,null,{"$f":"'Ana Menü'!O6","v":2012},"Temmuz Ayı Gider Hesabı"]
[null,"Tarihi","Giderin  Adı","Ödenen Firma","İşin Yapıldığı Tarih","Son Ödeme Tarihi","Ödenecek Tutar"]
[1,"2012-12-10","Apartman Boşluğu Elektrik","Tedaş","2012-12-21","2012-12-18",80]
[2,"2012-12-10","Temizlik","Güngör Temizlik","1 Aylık","2012-12-18",250]
[3,"2012-12-10","Asansör","Turşah Asansör","1 Aylık","2012-12-18",50]
[4,null,null,null,null,null,130]
[5]
[6]
[7]
[8]
[9]
[10]
["GİDER ARA TOPLAMI",null,null,null,null,null,{"$f":"SUM(G3:G12)","v":510}]
["SABİT AİDAT",null,null,null,null,null,20]
["Aidat ve diğer gider toplamı",null,null,null,null,null,{"$f":"SUM(G13+G14)","v":530}]
["Not:",null,null,null,null,"Yakıt",1000]
[null,null,null,null,null,"Genel Toplam",{"$f":"SUM(G15:G16)","v":1530}]

{"sheet":"Ağustos","index":13,"n_rows":17,"n_cols":7,"rows_kept":17,"cut":false,"hidden":false,"merged":[[15,0,16,4],[0,0,0,2],[0,4,0,6],[12,0,12,5],[13,0,13,5],[14,0,14,5]]}
[{"$f":"'Ana Menü'!M4","v":"Ahmet Ormanlı Apt."},null,null,{"$f":"'Ana Menü'!O6","v":2012},"Ağustos Ayı Gider Hesabı"]
[null,"Tarihi","Giderin  Adı","Ödenen Firma","İşin Yapıldığı Tarih","Son Ödeme Tarihi","Ödenecek Tutar"]
[1,"2012-12-10","Apartman Boşluğu Elektrik","Tedaş","2012-12-21","2012-12-18",80]
[2,"2012-12-10","Temizlik","Güngör Temizlik","1 Aylık","2012-12-18",250]
[3,"2012-12-10","Asansör","Turşah Asansör","1 Aylık","2012-12-18",50]
[4,null,null,null,null,null,130]
[5]
[6]
[7]
[8]
[9]
[10]
["GİDER ARA TOPLAMI",null,null,null,null,null,{"$f":"SUM(G3:G12)","v":510}]
["SABİT AİDAT",null,null,null,null,null,20]
["Aidat ve diğer gider toplamı",null,null,null,null,null,{"$f":"SUM(G13+G14)","v":530}]
["Not:",null,null,null,null,"Yakıt",1000]
[null,null,null,null,null,"Genel Toplam",{"$f":"SUM(G15:G16)","v":1530}]

{"sheet":"Eylül","index":14,"n_rows":17,"n_cols":7,"rows_kept":17,"cut":false,"hidden":false,"merged":[[15,0,16,4],[0,0,0,2],[0,4,0,6],[12,0,12,5],[13,0,13,5],[14,0,14,5]]}
[{"$f":"'Ana Menü'!M4","v":"Ahmet Ormanlı Apt."},null,null,{"$f":"'Ana Menü'!O6","v":2012},"Eylül Ayı Gider Hesabı"]
[null,"Tarihi","Giderin  Adı","Ödenen Firma","İşin Yapıldığı Tarih","Son Ödeme Tarihi","Ödenecek Tutar"]
[1,"2012-12-10","Apartman Boşluğu Elektrik","Tedaş","2012-12-21","2012-12-18",80]
[2,"2012-12-10","Temizlik","Güngör Temizlik","1 Aylık","2012-12-18",250]
[3,"2012-12-10","Asansör","Turşah Asansör","1 Aylık","2012-12-18",50]
[4,null,null,null,null,null,130]
[5]
[6]
[7]
[8]
[9]
[10]
["GİDER ARA TOPLAMI",null,null,null,null,null,{"$f":"SUM(G3:G12)","v":510}]
["SABİT AİDAT",null,null,null,null,null,20]
["Aidat ve diğer gider toplamı",null,null,null,null,null,{"$f":"SUM(G13+G14)","v":530}]
["Not:",null,null,null,null,"Yakıt",1000]
[null,null,null,null,null,"Genel Toplam",{"$f":"SUM(G15:G16)","v":1530}]

{"sheet":"Ekim","index":15,"n_rows":17,"n_cols":7,"rows_kept":17,"cut":false,"hidden":false,"merged":[[15,0,16,4],[0,0,0,2],[0,4,0,6],[12,0,12,5],[13,0,13,5],[14,0,14,5]]}
[{"$f":"'Ana Menü'!M4","v":"Ahmet Ormanlı Apt."},null,null,{"$f":"'Ana Menü'!O6","v":2012},"Ekim Ayı Gider Hesabı"]
[null,"Tarihi","Giderin  Adı","Ödenen Firma","İşin Yapıldığı Tarih","Son Ödeme Tarihi","Ödenecek Tutar"]
[1,"2012-12-10","Apartman Boşluğu Elektrik","Tedaş","2012-12-21","2012-12-18",80]
[2,"2012-12-10","Temizlik","Güngör Temizlik","1 Aylık","2012-12-18",250]
[3,"2012-12-10","Asansör","Turşah Asansör","1 Aylık","2012-12-18",50]
[4,null,null,null,null,null,130]
[5]
[6]
[7]
[8]
[9]
[10]
["GİDER ARA TOPLAMI",null,null,null,null,null,{"$f":"SUM(G3:G12)","v":510}]
["SABİT AİDAT",null,null,null,null,null,20]
["Aidat ve diğer gider toplamı",null,null,null,null,null,{"$f":"SUM(G13+G14)","v":530}]
["Not:",null,null,null,null,"Yakıt",1000]
[null,null,null,null,null,"Genel Toplam",{"$f":"SUM(G15:G16)","v":1530}]

{"sheet":"Kasım","index":16,"n_rows":17,"n_cols":7,"rows_kept":17,"cut":false,"hidden":false,"merged":[[15,0,16,4],[0,0,0,2],[0,4,0,6],[12,0,12,5],[13,0,13,5],[14,0,14,5]]}
[{"$f":"'Ana Menü'!M4","v":"Ahmet Ormanlı Apt."},null,null,{"$f":"'Ana Menü'!O6","v":2012},"Kasım Ayı Gider Hesabı"]
[null,"Tarihi","Giderin  Adı","Ödenen Firma","İşin Yapıldığı Tarih","Son Ödeme Tarihi","Ödenecek Tutar"]
[1,"2012-12-10","Apartman Boşluğu Elektrik","Tedaş","2012-12-21","2012-12-18",80]
[2,"2012-12-10","Temizlik","Güngör Temizlik","1 Aylık","2012-12-18",250]
[3,"2012-12-10","Asansör","Turşah Asansör","1 Aylık","2012-12-18",50]
[4,null,null,null,null,null,130]
[5]
[6]
[7]
[8]
[9]
[10]
["GİDER ARA TOPLAMI",null,null,null,null,null,{"$f":"SUM(G3:G12)","v":510}]
["SABİT AİDAT",null,null,null,null,null,20]
["Aidat ve diğer gider toplamı",null,null,null,null,null,{"$f":"SUM(G13+G14)","v":530}]
["Not:",null,null,null,null,"Yakıt",1000]
[null,null,null,null,null,"Genel Toplam",{"$f":"SUM(G15:G16)","v":1530}]

{"sheet":"Aralık","index":17,"n_rows":17,"n_cols":7,"rows_kept":17,"cut":false,"hidden":false,"merged":[[15,0,16,4],[0,0,0,2],[0,4,0,6],[12,0,12,5],[13,0,13,5],[14,0,14,5]]}
[{"$f":"'Ana Menü'!M4","v":"Ahmet Ormanlı Apt."},null,null,{"$f":"'Ana Menü'!O6","v":2012},"Aralık Ayı Gider Hesabı"]
[null,"Tarihi","Giderin  Adı","Ödenen Firma","İşin Yapıldığı Tarih","Son Ödeme Tarihi","Ödenecek Tutar"]
[1,"2012-12-10","Apartman Boşluğu Elektrik","Tedaş","2012-12-21","2012-12-18",80]
[2,"2012-12-10","Temizlik","Güngör Temizlik","1 Aylık","2012-12-18",250]
[3,"2012-12-10","Asansör","Turşah Asansör","1 Aylık","2012-12-18",50]
[4,null,null,null,null,null,130]
[5]
[6]
[7]
[8]
[9]
[10]
["GİDER ARA TOPLAMI",null,null,null,null,null,{"$f":"SUM(G3:G12)","v":510}]
["SABİT AİDAT",null,null,null,null,null,20]
["Aidat ve diğer gider toplamı",null,null,null,null,null,{"$f":"SUM(G13+G14)","v":530}]
["Not:",null,null,null,null,"Yakıt",1000]
[null,null,null,null,null,"Genel Toplam",{"$f":"SUM(G15:G16)","v":1530}]

{"sheet":"yardım","index":18,"n_rows":27,"n_cols":2,"rows_kept":27,"cut":false,"hidden":false,"merged":[[26,0,29,10],[3,0,3,10],[13,0,13,10],[14,0,14,10],[15,1,15,10],[16,1,16,10],[18,0,22,10],[23,0,25,10],[7,1,7,10],[8,1,8,10],[9,1,9,10],[10,1,10,10],[11,1,11,10],[12,0,12,10],[6,1,6,10],[0,0,0,10],[1,0,1,10],[2,0,2,10],[4,1,4,10],[5,1,5,10]]}
["Enes ÇINAR Apartman Yönetici Programı metrekare"]
["Programın yapılış amacı şudur. Apartman giderlerini hesapalarken adil dağıtım yapabilmek ve zamandan kazanmak için yapılmıştır. Yapılırken ufak tefek hatalar mutlaka olacaktır. Tabiki buda sizlerin denemesi ve hataları bildirmenizle gerçekleşecektir."]
["PROGRAMIN KULLANIM DETAYLARI"]
["İlk olarak ana menüden apartman adınızı ve seneyi yazınız."]
["1-","Apartman sakinleri bilgisini giriniz"]
["a-","Aidat hesaplamasını daire noya göre yapacağından aidat ödeyecek kaç daire varsa o kadar sıra yazınız"]
["b-","Daire metrekaresine göre otomatik dağılım yapmasını istiyorsanız metrekarelerini düzgün olarak yazınız. Yöneticiden aidat alınmasın diyorsanız eğer , yöneticinin olduğu kısımda daire nosunu boş bırakınız"]
["c-","Şayet metrekareler eşit  ve siz yöneticiden sadece yakıt giderinin %30 'unu almak istiyorsunuz o zaman tüm daire sakinlerinin metrekare alanına 100 Yöneticiye ise 30 veya % kaçsa onu yazıyıyoruz. Ve Yönetici kısmında 0 yapıyoruz yani herkes sıfır oluyor. yoksa yöneticiyi işaretlerseniz ondan hiç yakıt almaz. Yöneticiden hiç yakıt almak istemiyorsanız yönetici kısmına 1 ayzamalısınız."]
["2-","Her ayın Gider tablosu ana menüde bulunmaktadır. Her ayı kendi tablosuna işliyoruz."]
["a-","Eğer Sabit aidatınız varsa onu altta bulunan kısma yazıyoruz. Şayet aidatı aylık gidere göre hesaplıyorsanız bu noktada sabir aidat kısmı sıfır yaptığınızda gidere göre aidat çıkaracaktır ve diğer ödeme kısmında yazacaktır."]
["b-","Yakıt geldiği dönemlerde yakıtı da ayrıca aşağıda belirtmeniz lazım yoksa hesaplama yapamaz . Yakıt kısmına gelen toplam ücreti yazın gerisini programa bırakın :)"]
[3,"Ana Menüde bulunan \"Hesaplama Bilgilerini Gir \" linkine tıklayarak Ödeme Yılı,Son Ödeme Tarihi, Hesaplanacak daire sayısı,Kasadan karşılanan ve Kasada kalan parayı yazınız"]
["Kasadan karşılanan: yani Sabit aidatlı apartmanlar için hesapta kalan paradan yaptığınız ödemeleri yazdığınızda sadece harcamalarınızı daire sakinlerine sunmuşolacaksınız o ay için ayrıca onlara ücret yansıtmayacak."]
["Kasada kalan parayı: Sadece bilgi amaçlıdır hesap tutmaz."]
["Yazdırma"]
["1-","Ödenecek tutarları yazdır dediğinizde daire sahiplerine göre ödenecek tutarları yazdırır."]
["2-","Giderleri yazdırmak içinde her ayın kendi sayfasında YAZDIR butonu bulunmaktadır."]
[]
["Programın bu versiyonu Allah Rızası için yapılıp istifadenize sunulmuştur. İlk Hesaplamalarda bir dha önceden yaptığınız kara düzene göre hesplama yapıp programın doğru çalışıp  çalışmadığını kontrol etmek menfaatiniz icabıdır."]
[]
[]
[]
[]
["PROGRAMDAN KAYNAKLANACAK AKSAKLIKLARDAN DOLAYI PROGRAMI YAPAAN KESİNLİKLE SORUMLU TUTULAMAZ. HİÇ BİR GARANTİSİ YOKTUR. SONUÇTA KUL YAPISIDIR."]
[]
[]
["SELAM VE DUA İLE . Enes ÇINAR"]